bitfinex-derivatives/quotes_BTCF0:USTF0_20250212
["timestamp","ask_amount","ask_price","bid_price","bid_amount"]
[1739344103060,0.001,95976.0,95975.0,0.00115633]
[1739344115462,0.08214165,95985.0,95975.0,0.00115633]
[1739344116054,0.2084026,95983.0,95977.0,0.2084129]
[1739344117554,0.2104026,95983.0,95977.0,0.2084129]
[1739344121980,0.2084163,95977.0,95975.0,0.00015633]
[1739344123173,0.2094163,95977.0,95975.0,0.00015633]
[1739344123871,0.2094163,95977.0,95975.0,0.00115633]
[1739344163414,0.001,95977.0,95975.0,0.00115633]
[1739344163712,0.001,95977.0,95975.0,0.20957423]
[1739344164909,0.2211,95984.0,95975.0,0.06927633]
[1739344165108,0.2211,95984.0,95983.0,0.5692018]
[1739344165516,0.1213,95984.0,95983.0,0.5692018]
[1739344165710,0.00156295,95997.0,95986.0,0.2083952]
[1739344165912,0.08214165,95996.0,95993.0,0.3608]
[1739344166212,0.00156295,95997.0,95993.0,0.3608]
[1739344166413,0.00156295,95997.0,95995.0,0.2083739]
[1739344167817,0.01056295,95997.0,95995.0,0.2083739]
[1739344168608,0.01256295,95997.0,95995.0,0.2093739]
[1739344168804,0.01256295,95997.0,95996.0,0.0648]
[1739344170910,0.01356295,95997.0,95996.0,0.0658]
[1739344176022,0.01356295,95997.0,95996.0,0.4266]
[1739344181220,0.01356295,95997.0,95996.0,0.0658]
[1739344181511,0.01356295,95997.0,95996.0,0.4266]
[1739344183430,0.22193435,95997.0,95996.0,0.3618]
[1739344187231,0.20993435,95997.0,95996.0,0.3608]
[1739344187431,0.21393435,95997.0,95996.0,0.3608]
[1739344188029,0.20993435,95997.0,95996.0,0.3608]
[1739344188235,0.21893435,95997.0,95996.0,0.001]
[1739344189829,0.2083807,95993.0,95990.0,0.3608]
[1739344191332,0.00156295,95997.0,95990.0,0.3608]
[1739344191637,0.2083833,95992.0,95990.0,0.3608]
[1739344193735,0.2143833,95992.0,95990.0,0.3608]
[1739344194543,0.2173833,95992.0,95990.0,0.3618]
[1739344196441,0.2173833,95992.0,95990.0,0.3608]
[1739344196642,0.2153833,95992.0,95990.0,0.3618]
[1739344197346,0.2163833,95992.0,95990.0,0.3618]
[1739344198042,0.2083833,95992.0,95990.0,0.3608]
[1739344198239,0.2143833,95992.0,95990.0,0.3608]
[1739344200142,0.2083833,95992.0,95990.0,0.3608]
[1739344200343,0.3608,95991.0,95990.0,0.001]
[1739344200937,0.208387,95990.0,95979.0,0.21914179]
[1739344201132,0.1642833,95989.0,95979.0,0.21914179]
[1739344201849,0.08214165,95989.0,95979.0,0.21914179]
[1739344202545,0.08214165,95989.0,95979.0,0.22014179]
[1739344203049,0.2083943,95987.0,95979.0,0.22014179]
[1739344204448,0.2093943,95987.0,95979.0,0.22014179]
[1739344205145,0.2093943,95987.0,95979.0,0.21914179]
[1739344205349,0.2093943,95987.0,95979.0,0.22014179]
[1739344208348,0.2093943,95987.0,95979.0,0.01173269]
[1739344208650,0.2083983,95985.0,95979.0,0.01173269]
[1739344208854,0.2084083,95980.0,95979.0,0.001]
[1739344209743,0.06792,95983.0,95977.0,0.0303]
[1739344209949,0.2084126,95978.0,95977.0,0.0303]
[1739344212051,0.2084126,95978.0,95977.0,0.0313]
[1739344212441,0.2084126,95978.0,95977.0,0.0323]
[1739344215049,0.3608,95981.0,95977.0,0.0323]
[1739344215948,0.2084117,95979.0,95977.0,0.0323]
[1739344216149,0.2084117,95979.0,95977.0,0.0313]
[1739344216348,0.2084117,95979.0,95977.0,0.0323]
[1739344216543,0.2084117,95979.0,95977.0,0.002]
[1739344217144,0.2084126,95978.0,95977.0,0.001]
[1739344217342,0.3608,95981.0,95957.0,0.0329]
[1739344217649,0.5692298,95971.0,95957.0,0.0329]
[1739344218244,0.5692298,95971.0,95959.0,0.00015633]
[1739344218245,0.3608,95971.0,95959.0,0.00015633]
[1739344218546,0.2084347,95968.0,95959.0,0.00015633]
[1739344218752,0.2084347,95968.0,95966.0,0.0366]
[1739344219447,0.2084347,95968.0,95966.0,0.0456]
[1739344220252,0.2094347,95968.0,95966.0,0.0456]
[1739344222651,0.2094347,95968.0,95966.0,0.014]
[1739344223056,0.001,95968.0,95966.0,0.014]
[1739344223450,0.001,95968.0,95966.0,0.2224375]
[1739344223854,0.00015633,95978.0,95966.0,0.2224375]
[1739344223855,0.00015633,95978.0,95969.0,0.2084302]
[1739344224059,0.00015633,95978.0,95971.0,0.2084265]
[1739344225662,0.00015633,95978.0,95971.0,0.2114265]
[1739344226050,0.00015633,95978.0,95976.0,0.3608]
[1739344226250,0.00015633,95978.0,95976.0,0.5692153]
[1739344226453,0.00015633,95978.0,95977.0,0.06792]
[1739344227057,0.00015633,95978.0,95977.0,0.09862]
[1739344228465,0.00015633,95978.0,95977.0,0.09962]
[1739344228964,0.00015633,95978.0,95977.0,0.09862]
[1739344229157,0.00015633,95978.0,95977.0,0.10162]
[1739344229468,0.00015633,95978.0,95977.0,0.10762]
[1739344230265,0.00015633,95978.0,95977.0,0.10162]
[1739344230469,0.00015633,95978.0,95977.0,0.10762]
[1739344230768,0.00015633,95978.0,95977.0,0.10862]
[1739344231567,0.00015633,95978.0,95977.0,0.10462]
[1739344231758,0.00015633,95978.0,95977.0,0.10762]
[1739344236361,0.00015633,95978.0,95977.0,0.40762]
[1739344237967,0.00015633,95978.0,95977.0,0.10762]
[1739344246074,0.00015633,95978.0,95977.0,0.82922]
[1739344255682,0.00015633,95978.0,95977.0,0.10762]
[1739344255979,0.00015633,95978.0,95977.0,0.82922]
[1739344260686,0.00015633,95978.0,95977.0,0.79852]
[1739344262988,0.063,95989.0,95977.0,0.79852]
[1739344263288,0.063,95989.0,95987.0,0.3608]
[1739344264291,0.2083915,95988.0,95987.0,0.5691917]
[1739344265491,0.2083915,95988.0,95987.0,0.5711917]
[1739344265987,0.064,95989.0,95987.0,0.5711917]
[1739344266892,0.001,95988.0,95987.0,0.5711917]
[1739344267689,0.064,95989.0,95987.0,0.5711917]
[1739344268493,0.001,95988.0,95987.0,0.58172873]
[1739344270083,0.064,95989.0,95987.0,0.58172873]
[1739344270905,0.063,95989.0,95987.0,0.58272873]
[1739344271586,0.064,95989.0,95987.0,0.58172873]
[1739344273091,0.08566993,95993.0,95989.0,0.2083873]
[1739344274587,0.08866993,95993.0,95989.0,0.2083873]
[1739344274991,0.2083882,95990.0,95989.0,0.001]
[1739344275184,0.2083882,95990.0,95978.0,0.00015633]
[1739344275185,0.2084054,95982.0,95978.0,0.00015633]
[1739344275391,0.0199,95981.0,95978.0,0.00015633]
[1739344275594,0.3807,95981.0,95978.0,0.00015633]
[1739344276299,0.0622,95980.0,95978.0,0.00015633]
[1739344277700,0.0622,95980.0,95978.0,0.00915633]
[1739344283300,0.3608,95986.0,95978.0,0.00915633]
[1739344283691,0.3608,95986.0,95979.0,0.0308]
[1739344284800,0.3608,95986.0,95979.0,0.0348]
[1739344284995,0.08212543,95988.0,95979.0,0.0348]
[1739344285198,0.44292543,95990.0,95980.0,0.0655]
[1739344285994,0.44292543,95990.0,95988.0,0.2083894]
[1739344286204,0.3608,95990.0,95988.0,0.2083894]
[1739344286804,0.2083724,95997.0,95988.0,0.2083894]
[1739344287401,0.002,95990.0,95988.0,0.2083894]
[1739344287808,0.002,95990.0,95988.0,0.2093894]
[1739344288110,0.2103724,95997.0,95988.0,0.2093894]
[1739344290201,0.002,95990.0,95988.0,0.21994184]
[1739344290806,0.002,95990.0,95988.0,0.22094184]
[1739344291006,0.2093724,95997.0,95988.0,0.22094184]
[1739344291808,0.2083724,95997.0,95988.0,0.22094184]
[1739344292004,0.001,95990.0,95988.0,0.22094184]
[1739344294017,0.2083751,95996.0,95988.0,0.22094184]
[1739344294720,0.2083751,95996.0,95988.0,0.21994184]
[1739344294918,0.002,95990.0,95988.0,0.21994184]
[1739344296521,0.2103751,95996.0,95988.0,0.21994184]
[1739344297407,0.002,95990.0,95988.0,0.21994184]
[1739344297815,0.3608,95989.0,95980.0,0.0655]
[1739344298024,0.5691901,95989.0,95988.0,0.001]
[1739344300213,0.5691901,95989.0,95980.0,0.08024689]
[1739344300521,0.2083901,95989.0,95980.0,0.08424689]
[1739344300821,0.2083901,95989.0,95988.0,0.001]
[1739344301115,0.2103901,95989.0,95988.0,0.001]
[1739344301309,0.2103901,95989.0,95980.0,0.07624689]
[1739344301514,0.2103901,95989.0,95980.0,0.08024689]
[1739344302321,0.2103901,95989.0,95981.0,0.2084061]
[1739344302811,0.2083901,95989.0,95981.0,0.2084061]
[1739344303010,0.2083901,95989.0,95988.0,0.001]
[1739344303523,0.2083901,95989.0,95981.0,0.2084061]
[1739344303724,0.2083901,95989.0,95981.0,0.2144061]
[1739344304226,0.2083901,95989.0,95988.0,0.001]
[1739344304523,0.2103901,95989.0,95988.0,0.001]
[1739344304722,0.2103901,95989.0,95981.0,0.2084061]
[1739344305028,0.2103901,95989.0,95981.0,0.2114061]
[1739344305921,0.2083901,95989.0,95981.0,0.2114061]
[1739344306125,0.2083901,95989.0,95981.0,0.2144061]
[1739344306924,0.2083901,95989.0,95988.0,0.001]
[1739344307625,0.5691901,95989.0,95981.0,0.2144061]
[1739344308126,0.5691901,95989.0,95981.0,0.2114061]
[1739344308326,0.5691901,95989.0,95988.0,0.001]
[1739344309018,0.1213,95998.0,95988.0,0.001]
[1739344309019,0.208372,95997.0,95988.0,0.001]
[1739344309218,0.002,95989.0,95988.0,0.001]
[1739344310024,0.2083771,95995.0,95988.0,0.001]
[1739344310621,0.2083771,95995.0,95985.0,0.2083956]
[1739344310821,0.29050253,95995.0,95985.0,0.2083956]
[1739344311520,0.29050253,95995.0,95988.0,0.001]
[1739344311825,0.2083771,95995.0,95988.0,0.001]
[1739344312024,0.002,95989.0,95985.0,0.2103956]
[1739344312525,0.002,95989.0,95985.0,0.2083956]
[1739344312731,0.07655801,95994.0,95988.0,0.001]
[1739344314331,0.07655801,95994.0,95985.0,0.2103956]
[1739344314918,0.07655801,95994.0,95988.0,0.001]
[1739344315324,0.07855801,95994.0,95988.0,0.001]
[1739344315531,0.07855801,95994.0,95985.0,0.2083956]
[1739344315826,0.07855801,95994.0,95985.0,0.2103956]
[1739344316327,0.002,95994.0,95985.0,0.2103956]
[1739344316527,0.29050253,95995.0,95985.0,0.2103956]
[1739344317234,0.29050253,95995.0,95988.0,0.001]
[1739344317434,0.2083771,95995.0,95988.0,0.001]
[1739344317824,0.2083771,95995.0,95985.0,0.2103956]
[1739344318328,0.2083788,95994.0,95988.0,0.001]
[1739344318837,0.2083788,95994.0,95985.0,0.2083956]
[1739344319132,0.3608,95992.0,95985.0,0.2103956]
[1739344320530,0.3608,95992.0,95985.0,0.2083956]
[1739344320732,0.3608,95992.0,95988.0,0.001]
[1739344321231,0.3608,95992.0,95985.0,0.2103956]
[1739344321440,0.3608,95975.0,95932.0,0.09988026]
[1739344321623,0.3608,95933.0,95932.0,0.09988026]
[1739344322134,0.3608,95933.0,95932.0,0.11058503]
[1739344322536,0.3608,95933.0,95932.0,0.11488026]
[1739344322736,0.3608,95933.0,95932.0,0.015]
[1739344323339,0.3608,95933.0,95929.0,0.09988026]
[1739344323538,0.3628,95933.0,95929.0,0.09988026]
[1739344323734,0.3628,95933.0,95932.0,0.003]
[1739344324241,0.7236,95933.0,95932.0,0.001]
[1739344325343,0.7226,95933.0,95932.0,0.001]
[1739344326330,0.7236,95933.0,95932.0,0.001]
[1739344333355,0.2085175,95930.0,95924.0,0.0314]
[1739344333648,0.3608,95925.0,95924.0,0.0314]
[1739344333843,0.20853,95924.0,95923.0,0.00172019]
[1739344335346,0.20853,95924.0,95923.0,0.00572019]
[1739344336350,0.20853,95924.0,95923.0,0.00972019]
[1739344337144,0.3608,95925.0,95923.0,0.21825229]
[1739344338245,0.3608,95925.0,95923.0,0.21425229]
[1739344338447,0.3608,95925.0,95923.0,0.21825229]
[1739344339153,0.3608,95925.0,95923.0,0.21425229]
[1739344339350,0.3608,95925.0,95923.0,0.21825229]
[1739344339652,0.2085211,95929.0,95925.0,0.2085259]
[1739344339853,0.7216,95926.0,95925.0,0.2085259]
[1739344340842,0.7216,95926.0,95925.0,0.2115259]
[1739344341046,0.7216,95926.0,95925.0,0.2145259]
[1739344342151,0.7216,95926.0,95925.0,0.2115259]
[1739344342451,0.7216,95926.0,95925.0,0.2145259]
[1739344344156,0.2085211,95929.0,95925.0,0.2145259]
[1739344344359,0.7216,95926.0,95925.0,0.2145259]
[1739344347354,0.55138164,95926.0,95925.0,0.2145259]
[1739344352045,0.7216,95926.0,95925.0,0.2145259]
[1739344352963,0.2085211,95929.0,95925.0,0.2145259]
[1739344353260,0.7216,95926.0,95925.0,0.2145259]
[1739344357156,0.78202797,95926.0,95925.0,0.2145259]
[1739344370572,0.78202797,95926.0,95925.0,0.006]
[1739344370899,0.78202797,95926.0,95918.0,0.0333]
[1739344371176,0.2085416,95919.0,95908.0,0.2085634]
[1739344371377,0.3608,95910.0,95908.0,0.2085634]
[1739344371971,0.3608,95910.0,95909.0,0.04108729]
[1739344372373,0.3528,95910.0,95909.0,0.04108729]
[1739344372970,0.3528,95910.0,95909.0,0.0306]
[1739344373168,0.5623604,95910.0,95909.0,0.014]
[1739344373382,0.5623604,95910.0,95909.0,0.021]
[1739344373979,0.5623604,95910.0,95909.0,0.017]
[1739344374371,0.5613604,95910.0,95909.0,0.006]
[1739344374572,0.38802914,95910.0,95909.0,0.006]
[1739344375981,0.44845711,95910.0,95909.0,0.006]
[1739344378467,0.23989671,95910.0,95909.0,0.006]
[1739344382272,0.42122797,95910.0,95909.0,0.006]
[1739344382976,0.06042797,95910.0,95909.0,0.006]
[1739344383179,0.42122797,95910.0,95909.0,0.006]
[1739344389489,0.42122797,95910.0,95909.0,0.004]
[1739344389875,0.42122797,95910.0,95909.0,0.001]
[1739344390079,0.42422797,95910.0,95909.0,0.001]
[1739344390280,0.06342797,95910.0,95909.0,0.001]
[1739344390481,0.42422797,95910.0,95909.0,0.001]
[1739344391392,0.06342797,95910.0,95909.0,0.001]
[1739344391688,0.42422797,95910.0,95909.0,0.001]
[1739344395890,0.06342797,95910.0,95909.0,0.001]
[1739344396095,0.42422797,95910.0,95909.0,0.001]
[1739344402695,0.06342797,95910.0,95909.0,0.001]
[1739344402883,0.42422797,95910.0,95909.0,0.001]
[1739344404803,0.21824179,95919.0,95918.0,0.208543]
[1739344404804,0.57904179,95919.0,95918.0,0.208543]
[1739344406103,0.58904179,95919.0,95918.0,0.209543]
[1739344406501,0.22824179,95919.0,95918.0,0.209543]
[1739344406897,0.22424179,95919.0,95918.0,0.208543]
[1739344408301,0.00615633,95919.0,95918.0,0.208543]
[1739344408706,0.00515633,95919.0,95918.0,0.21914054]
[1739344409108,0.00415633,95919.0,95918.0,0.21914054]
[1739344420702,0.19155373,95919.0,95918.0,0.21914054]
[1739344424118,0.00415633,95919.0,95918.0,0.21914054]
[1739344427412,0.00415633,95919.0,95918.0,0.28782054]
[1739344427816,0.00415633,95919.0,95918.0,0.21914054]
[1739344428019,0.00615374,95925.0,95924.0,0.20853]
[1739344429717,0.00715374,95925.0,95924.0,0.20853]
[1739344430316,0.01515374,95925.0,95924.0,0.20953]
[1739344431611,0.009,95925.0,95924.0,0.20953]
[1739344470450,0.18150511,95927.0,95924.0,0.001]
[1739344470656,0.3608,95932.0,95924.0,0.001]
[1739344470853,0.3608,95932.0,95931.0,0.208513]
[1739344471351,0.3608,95932.0,95924.0,0.001]
[1739344471547,0.3608,95932.0,95931.0,0.1091148]
[1739344472360,0.3738,95932.0,95931.0,0.1101148]
[1739344473058,0.3768,95932.0,95931.0,0.1101148]
[1739344474959,0.45340033,95932.0,95931.0,0.1101148]
[1739344476451,0.45340033,95932.0,95931.0,0.001]
[1739344477355,0.09260033,95932.0,95931.0,0.001]
[1739344477661,0.09260033,95932.0,95931.0,0.2095147]
[1739344478052,0.016,95932.0,95931.0,0.2095147]
[1739344478458,0.016,95932.0,95931.0,0.22022007]
[1739344482465,0.003,95932.0,95931.0,0.22222007]
[1739344482657,0.00015633,95934.0,95931.0,0.01370537]
[1739344482860,0.00015633,95934.0,95933.0,0.2085104]
[1739344485569,0.21964943,95947.0,95946.0,0.2084821]
[1739344487157,0.22064943,95947.0,95946.0,0.2084821]
[1739344488466,0.00256397,95947.0,95946.0,0.2124821]
[1739344489161,0.00156397,95947.0,95946.0,0.2124821]
[1739344489367,0.00156397,95947.0,95946.0,0.2244821]
[1739344489668,0.00156397,95947.0,95946.0,0.2204821]
[1739344489869,0.00156397,95947.0,95946.0,0.2254821]
[1739344491459,0.00156397,95947.0,95946.0,0.2214821]
[1739344493673,0.00156397,95947.0,95946.0,0.23194075]
[1739344494075,0.00156397,95947.0,95946.0,0.22394075]
[1739344494373,0.00156397,95947.0,95946.0,0.23194075]
[1739344499673,0.00156397,95947.0,95946.0,0.22694075]
[1739344499879,0.00156397,95947.0,95946.0,0.23194075]
[1739344500579,0.00156397,95947.0,95946.0,0.22394075]
[1739344500876,0.00156397,95947.0,95946.0,0.23194075]
[1739344502670,0.00156397,95947.0,95946.0,0.22694075]
[1739344502876,0.00156397,95947.0,95946.0,0.23194075]
[1739344504676,0.00156397,95947.0,95946.0,0.29994075]
[1739344506473,0.00156397,95947.0,95946.0,0.29494075]
[1739344506668,0.00156397,95947.0,95946.0,0.29894075]
[1739344508180,0.00156397,95947.0,95946.0,0.23094075]
[1739344508485,0.00156397,95947.0,95946.0,0.22294075]
[1739344508783,0.00156397,95947.0,95946.0,0.2164821]
[1739344515781,0.00156397,95947.0,95946.0,0.2844821]
[1739344516383,0.3608,95961.0,95946.0,0.076]
[1739344516588,0.3608,95961.0,95960.0,0.2084517]
[1739344516785,0.21839857,95969.0,95952.0,0.3608]
[1739344517088,0.21839857,95969.0,95966.0,0.2084367]
[1739344517792,0.33148265,95976.0,95966.0,0.2084367]
[1739344518392,0.003,95969.0,95966.0,0.2094367]
[1739344519086,0.3608,95975.0,95966.0,0.2094367]
[1739344519285,0.3608,95967.0,95966.0,0.2094367]
[1739344520486,0.3618,95967.0,95966.0,0.2084367]
[1739344521001,0.001,95967.0,95966.0,0.2084367]
[1739344521496,0.004,95967.0,95966.0,0.2084367]
[1739344546710,0.004,95967.0,95966.0,0.2100367]
[1739344548402,0.003,95967.0,95966.0,0.2100367]
[1739344548602,0.208417,95976.0,95972.0,0.2084243]
[1739344549197,0.208417,95976.0,95974.0,0.2084197]
[1739344549403,0.04093813,95979.0,95966.0,0.0096]
[1739344549707,0.04093813,95979.0,95974.0,0.2084194]
[1739344550508,0.04093813,95979.0,95975.0,0.2084183]
[1739344551705,0.04093813,95979.0,95976.0,0.2084156]
[1739344552611,0.04293813,95979.0,95976.0,0.2084156]
[1739344553017,0.04293813,95979.0,95976.0,0.2094156]
[1739344553217,0.04093813,95979.0,95976.0,0.2094156]
[1739344554811,0.04093813,95979.0,95976.0,0.001]
[1739344555011,0.04093813,95979.0,95977.0,0.208414]
[1739344556315,0.04193813,95979.0,95977.0,0.209414]
[1739344556515,0.25035063,95979.0,95977.0,0.209414]
[1739344556717,0.25035063,95979.0,95977.0,0.001]
[1739344556918,0.208421,95975.0,95970.0,0.2084285]
[1739344558020,0.2084271,95972.0,95966.0,0.0016]
[1739344558527,0.2084271,95972.0,95968.0,0.2084338]
[1739344558716,0.2084271,95972.0,95970.0,0.001]
[1739344560412,0.2084271,95972.0,95970.0,0.002]
[1739344561021,0.2084271,95972.0,95970.0,0.001]
[1739344561214,0.3608,95971.0,95966.0,0.0036]
[1739344561407,0.2084365,95967.0,95966.0,0.0036]
[1739344561611,0.5692365,95967.0,95966.0,0.0036]
[1739344561811,0.5692365,95967.0,95966.0,0.0016]
[1739344562923,0.5722365,95967.0,95966.0,0.0016]
[1739344564621,0.58265803,95967.0,95966.0,0.0016]
[1739344566612,0.37422153,95967.0,95966.0,0.0016]
[1739344566820,0.44238153,95967.0,95966.0,0.0016]
[1739344568320,0.43196,95967.0,95966.0,0.0016]
[1739344570322,0.07116,95967.0,95966.0,0.0016]
[1739344570524,0.43196,95967.0,95966.0,0.0016]
[1739344570725,0.07116,95967.0,95966.0,0.0016]
[1739344570915,0.43196,95967.0,95966.0,0.0016]
[1739344574733,0.43196,95967.0,95959.0,0.2084528]
[1739344574927,0.2084503,95961.0,95955.0,0.00156327]
[1739344575128,0.3608,95956.0,95955.0,0.00156327]
[1739344576025,0.3608,95956.0,95955.0,0.00456327]
[1739344577428,0.3608,95956.0,95955.0,0.00956327]
[1739344583335,0.3608,95956.0,95955.0,0.008]
[1739344587334,0.21905763,95957.0,95955.0,0.008]
[1739344587535,0.3608,95956.0,95955.0,0.008]
[1739344589140,0.21905763,95957.0,95955.0,0.008]
[1739344589342,0.3608,95956.0,95955.0,0.008]
[1739344591741,0.3608,95956.0,95955.0,0.005]
[1739344591945,0.3608,95956.0,95955.0,0.008]
[1739344596059,0.1213,95962.0,95961.0,0.2084496]
[1739344597338,0.1213,95962.0,95961.0,0.2094496]
[1739344598747,0.1213,95962.0,95961.0,0.2114496]
[1739344599954,0.3608,95963.0,95961.0,0.2114496]
[1739344600346,0.3608,95963.0,95962.0,0.0951]
[1739344601846,0.3608,95963.0,95962.0,0.0961]
[1739344602246,0.3608,95965.0,95962.0,0.0961]
[1739344602546,0.29063074,95971.0,95962.0,0.0961]
[1739344602749,0.3608,95965.0,95962.0,0.0961]
[1739344605455,0.3608,95965.0,95963.0,0.2084453]
[1739344606755,0.3618,95965.0,95963.0,0.2084453]
[1739344607652,0.3618,95965.0,95963.0,0.2094453]
[1739344611854,0.08220274,95971.0,95968.0,0.2084343]
[1739344612056,0.21868533,95975.0,95963.0,0.001]
[1739344612259,0.08220274,95973.0,95963.0,0.001]
[1739344612456,0.08220274,95973.0,95972.0,0.2084257]
[1739344612758,0.1213,95979.0,95974.0,0.2084207]
[1739344613350,0.3297106,95979.0,95974.0,0.2084207]
[1739344614657,0.3337106,95979.0,95974.0,0.2094207]
[1739344617762,0.2124106,95979.0,95974.0,0.2094207]
[1739344619265,0.2124106,95979.0,95974.0,0.2200381]
[1739344621465,0.004,95979.0,95974.0,0.2200381]
[1739344621665,0.2084142,95978.0,95974.0,0.2094207]
[1739344623769,0.2104142,95978.0,95974.0,0.2094207]
[1739344623961,0.2084288,95971.0,95967.0,0.2084353]
[1739344625560,0.2084288,95971.0,95967.0,0.2124353]
[1739344626462,0.2084288,95971.0,95967.0,0.2154353]
[1739344627259,0.2084288,95971.0,95967.0,0.2144353]
[1739344627675,0.2084288,95971.0,95967.0,0.2124353]
[1739344627970,0.2084288,95971.0,95967.0,0.2154353]
[1739344628676,0.2084288,95971.0,95969.0,0.2084313]
[1739344629561,0.0328,95976.0,95969.0,0.2084313]
[1739344629963,0.0328,95976.0,95969.0,0.2104313]
[1739344631468,0.0328,95976.0,95969.0,0.2124313]
[1739344634074,0.0328,95976.0,95971.0,0.2084266]
[1739344635171,0.0328,95976.0,95971.0,0.2094266]
[1739344635773,0.3608,95979.0,95971.0,0.001]
[1739344636076,0.3608,95979.0,95977.0,0.2084134]
[1739344636974,0.3608,95979.0,95978.0,0.0616]
[1739344637278,0.08220274,95987.0,95986.0,0.2083953]
[1739344637471,0.25029855,95989.0,95988.0,0.208391]
[1739344639778,0.25329855,95989.0,95988.0,0.208391]
[1739344640080,0.00405802,95989.0,95988.0,0.208391]
[1739344640672,0.00605802,95989.0,95988.0,0.209391]
[1739344641492,0.00605802,95989.0,95988.0,0.21972331]
[1739344647178,0.005,95989.0,95988.0,0.21972331]
[1739344654289,0.005,95989.0,95988.0,0.58052331]
[1739344663690,0.005,95989.0,95988.0,0.94132331]
[1739344666793,0.18220274,96000.0,95988.0,0.74693231]
[1739344666994,0.18220274,96000.0,95999.0,0.5691671]
[1739344667197,0.1,96000.0,95999.0,0.6371271]
[1739344669487,0.1,96000.0,95999.0,0.6421271]
[1739344670198,0.1,96000.0,95999.0,0.6501271]
[1739344675701,0.1,96000.0,95999.0,0.66045161]
[1739344685302,0.1,96000.0,95999.0,0.29965161]
[1739344685503,0.1,96000.0,95999.0,0.66045161]
[1739344691799,0.1,96000.0,95999.0,1.02125161]
[1739344692307,0.1,96000.0,95999.0,0.95329161]
[1739344692502,0.1,96000.0,95999.0,1.02125161]
[1739344698001,0.1,96000.0,95999.0,0.95329161]
[1739344698205,0.1,96000.0,95999.0,1.02125161]
[1739344703006,1e-07,96000.0,95999.0,1.02125161]
[1739344704209,1e-07,96000.0,95999.0,0.95329161]
[1739344704607,1e-07,96000.0,95999.0,1.02125161]
[1739344705113,0.08220274,96009.0,96003.0,0.2083579]
[1739344705309,0.2083485,96008.0,96003.0,0.2083579]
[1739344706408,0.2083485,96008.0,96003.0,0.2113579]
[1739344707214,0.2083485,96008.0,96003.0,0.2163579]
[1739344707599,0.08220274,96013.0,96007.0,0.2083488]
[1739344707825,0.2083325,96015.0,96007.0,0.2083488]
[1739344708405,0.0316,96014.0,96007.0,0.2083488]
[1739344709220,0.0316,96014.0,96007.0,0.2103488]
[1739344710016,0.0316,96014.0,96007.0,0.2123488]
[1739344711217,0.2083376,96013.0,96007.0,0.2123488]
[1739344711713,0.0316,96014.0,96007.0,0.2123488]
[1739344711911,0.2083412,96011.0,96007.0,0.2123488]
[1739344712619,0.2083412,96011.0,96007.0,0.2103488]
[1739344712809,0.2083412,96011.0,96007.0,0.2123488]
[1739344713510,0.2083412,96011.0,96007.0,0.2103488]
[1739344713814,0.2083412,96011.0,96007.0,0.2123488]
[1739344714321,0.2083412,96011.0,96007.0,0.2103488]
[1739344714523,0.2083412,96011.0,96007.0,0.2123488]
[1739344714816,0.208344,96010.0,96007.0,0.2123488]
[1739344716716,0.208344,96010.0,96007.0,0.2103488]
[1739344716918,0.208344,96010.0,96007.0,0.2123488]
[1739344724032,0.0316,96014.0,96007.0,0.2123488]
[1739344725030,0.0316,96014.0,96007.0,0.2103488]
[1739344725227,0.0316,96014.0,96007.0,0.2123488]
[1739344725832,0.0316,96014.0,96007.0,0.2103488]
[1739344726029,0.0316,96014.0,96007.0,0.2123488]
[1739344727522,0.0316,96014.0,96007.0,0.004]
[1739344727834,0.2083304,96016.0,96011.0,0.2083396]
[1739344729038,0.2083374,96013.0,96011.0,0.2083396]
[1739344729226,0.2083374,96013.0,96011.0,0.2093396]
[1739344729831,0.2083374,96013.0,96011.0,0.2133396]
[1739344731334,0.2083374,96013.0,96011.0,0.2123396]
[1739344731540,0.2083374,96013.0,96011.0,0.2143396]
[1739344731936,0.2083374,96013.0,96011.0,0.2123396]
[1739344732136,0.2083374,96013.0,96011.0,0.2143396]
[1739344733137,0.4821,96019.0,96011.0,0.006]
[1739344733329,0.7583848,96019.0,96016.0,0.2083291]
[1739344733635,0.6370848,96019.0,96016.0,0.2083291]
[1739344734037,0.2083272,96018.0,96016.0,0.2083291]
[1739344734534,0.2083272,96018.0,96016.0,0.2093291]
[1739344735032,0.2083272,96018.0,96016.0,0.2083291]
[1739344735234,0.2083272,96018.0,96016.0,0.2093291]
[1739344738235,0.2083272,96018.0,96016.0,0.001]
[1739344747444,0.43943002,96021.0,96016.0,0.001]
[1739344747646,0.43943002,96021.0,96018.0,0.2083256]
[1739344748041,0.43943002,96021.0,96018.0,0.1083256]
[1739344748849,0.37147002,96021.0,96018.0,0.1093256]
[1739344749352,0.01067002,96021.0,96018.0,0.1093256]
[1739344749549,0.49401588,96026.0,96018.0,0.1093256]
[1739344751156,0.85481588,96026.0,96018.0,0.1093256]
[1739344751543,0.85481588,96026.0,96019.0,0.2083224]
[1739344752356,0.64650548,96026.0,96019.0,0.2083224]
[1739344752654,0.208312,96025.0,96019.0,0.2083224]
[1739344752851,0.56430274,96026.0,96018.0,0.001]
[1739344753052,0.56430274,96026.0,96024.0,0.2083119]
[1739344753252,0.3608,96026.0,96024.0,0.2083119]
[1739344754253,0.3618,96026.0,96024.0,0.2083119]
[1739344755262,4.642e-05,96025.0,96024.0,0.2083119]
[1739344757359,0.00104642,96025.0,96024.0,0.2083119]
[1739344771168,0.08376521,96034.0,96018.0,0.37118649]
[1739344771473,0.01024857,96046.0,96031.0,0.3608]
[1739344771659,0.00156195,96060.0,96043.0,0.3608]
[1739344771968,0.00156195,96060.0,96050.0,0.08220274]
[1739344772363,0.08376469,96060.0,96050.0,0.08220274]
[1739344773268,0.16596743,96060.0,96044.0,0.0946]
[1739344773460,0.08220274,96054.0,96051.0,0.3608]
[1739344773671,0.08376469,96060.0,96051.0,0.3608]
[1739344774171,0.16440548,96061.0,96051.0,0.3608]
[1739344774573,0.08220274,96061.0,96051.0,0.3608]
[1739344775273,0.28113999,96067.0,96060.0,0.3608]
[1739344775471,0.16174511,96064.0,96061.0,0.0613]
[1739344775968,0.08220274,96071.0,96061.0,0.0613]
[1739344776767,0.00156181,96081.0,96068.0,0.3608]
[1739344777069,0.16440548,96080.0,96068.0,0.3608]